Cogmind - Beta 10.2 @@@ ROGUE MODE // 2021.02.08 @ 16:27:45 Player: Finestep Result: Destroyed by D-53 Grenadier with Mini Grenade Launcher Performance ------------- Evolutions (0) 0 Regions Visited (2) 400 Robots Destroyed (17) 85 Value Destroyed (325) 325 Prototype IDs (2) 40 Alien Tech Used (0) 0 Bonus (-20) -20 TOTAL SCORE: 830 Bonus ------- Follower Combat Kills 7 Friendly Fire -27 Cogmind --------- Core Integrity 0/250 Matter 285/300 Energy 260/265 System Corruption 0% Temperature Cool (14) Movement Treading (200) Ox2 Location -10/Mines Parts ------- > --- POWER (1) -------- Improved Ion Engine > --- PROPULSION (2) --- Light Treads Wheel > --- UTILITY (2) ------ Large Storage Unit High-capacity Storage Unit > --- WEAPON (2) ------- EM Pulse Gun Light Assault Rifle > --- INVENTORY (18) --- Improved Ion Engine Fission Core Light Treads Improved Aluminum Leg Improved Aluminum Leg Improved Aluminum Leg Improved Aluminum Leg Wheel Small Storage Unit Medium Storage Unit Large Storage Unit Structural Scanner Particle Gun Assault Rifle Light Cannon Grenade Launcher Mining Laser Peak State ------------ > --- POWER ------------ Improved Ion Engine > --- PROPULSION ------- Light Treads Compact Wheel > --- UTILITY ---------- Large Storage Unit Large Storage Unit > --- WEAPON ----------- EM Pulse Gun EM Pulse Gun > --- INVENTORY -------- Improved Ion Engine Improved Ion Engine Light Treads Improved Aluminum Leg Improved Aluminum Leg Improved Aluminum Leg Improved Aluminum Leg Compact Wheel Small Storage Unit Medium Storage Unit EM Pulse Gun Assault Rifle Light Cannon Grenade Launcher Mining Laser [Rating: 10] Favorites ----------- Power Improved Ion Engine Engine Improved Ion Engine Propulsion Compact Wheel Treads Light Treads Wheel Compact Wheel Utility Large Storage Unit Storage Large Storage Unit Weapon EM Pulse Gun Energy Gun EM Pulse Gun Ballistic Gun Light Assault Rifle Launcher Grenade Launcher Build | -11 -10 -10 ------- Run | Scr Mat Min Slots Evolved . | . . . Power . | . . . Propulsion . | . . . Utility . | . . . Weapon . | . . . Parts Attached 27 | 7 14 6 Power 3 | 1 1 1 Engine 3 | 1 1 1 Core . | . . . Reactor . | . . . Propulsion 6 | 2 3 1 Treads 3 | 1 1 1 Leg . | . . . Wheel 3 | 1 2 . Hover . | . . . Flight . | . . . Utility 5 | 2 3 . Device . | . . . Storage 5 | 2 3 . Processor . | . . . Hackware . | . . . Protection . | . . . Artifact . | . . . Weapon 13 | 2 7 4 Energy Gun 6 | 2 3 1 Energy Cannon . | . . . Ballistic Gun 3 | . 2 1 Ballistic Cannon . | . . . Launcher 4 | . 2 2 Special Weapon . | . . . Impact Weapon . | . . . Slashing Weapon . | . . . Piercing Weapon . | . . . Special Melee Weapon . | . . . Unidentified Prototypes . | . . . Parts Lost 3 | . 2 1 Power . | . . . Propulsion 2 | . 1 1 Utility . | . . . Weapon 1 | . 1 . Highest Loss Streak 1 | . 1 1 Average Slot Usage (%) 98 | . 98 100 Engine 14 | . 14 14 Treads 8 | . 9 3 Wheel 18 | . 17 24 Storage 28 | . 28 28 Energy Gun 14 | . 16 2 Ballistic Gun 13 | . 11 23 Naked Turns . | . . . Heaviest Build 59 | 15 58 59 Greatest Support 26 | 20 26 26 Greatest Overweight (x) 5 | . 3 5 Average Overweight (x) 1 | . 1 2 Largest Inventory Capacity 18 | 8 18 18 Average Capacity 14 | 6 15 18 Most Carried 18 | 6 18 18 Average Carried 13 | 3 13 17 Final Capacity 18 | 8 18 18 Final Carried 18 | 6 18 17 Class Distribution -------------------- 100% | Mutant Dominant Class ---------------- Mutant | -10/Materials Mutant | -10/Mines Resources | -11 -10 -10 ----------- Run | Scr Mat Min Matter Collected 684 | 268 290 126 Remotely . | . . . Salvage Created 549 | 86 416 47 Parts 28 | 6 20 2 Haulers Intercepted 1 | . 1 . Recyclers Shooed 3 | . 3 . Parts Field Recycled . | . . . Retrieved Matter . | . . . Parts Self-Destructed . | . . . Prevented . | . . . Kills | -11 -10 -10 ------- Run | Scr Mat Min Combat Hostiles Destroyed 21 | . 8 13 Guns 5 | . 5 . AOE 16 | . 3 13 Classes Destroyed 8 | 2 5 1 Tunneler 1 | 1 . . Hauler 1 | . 1 . Recycler 2 | 1 1 . Operator 1 | . 1 . Watcher 2 | . 2 . Swarmer 5 | . 3 2 Grunt 5 | . 5 . Assembled 11 | . . 11 Best Kill Streak 11 | 1 4 11 Combat Bots Only 11 | . 3 11 Max Kills in Single Turn 5 | 1 2 5 Gunslinging . | . . . Exploded 5 | . 2 5 Melee . | . . . Uniques/NPCs Destroyed . | . . . Combat | -11 -10 -10 -------- Run | Scr Mat Min Damage Taken 762 | 24 487 251 Core 253 | . 102 151 Absorbed by Shields . | . . . Core Remaining (%) 100 | 100 . . Volleys Fired 75 | 8 57 10 Largest 2 | 2 2 2 Hottest 80 | 80 80 60 Shots Fired 138 | 16 110 12 Gun 127 | 16 107 4 Cannon . | . . . Launcher 11 | . 3 8 Special . | . . . Kinetic 74 | . 72 2 Thermal . | . . . Explosive 11 | . 3 8 Electromagnetic 53 | 16 35 2 Robot Hit Streak 9 | 3 9 4 Robot Miss Streak 4 | 2 4 1 Penetration Max . | . . . Secondary Targets 2 | . 2 . Max Gunslinging Chain 1 | . 1 . Shots Hit Robots 76 | 9 62 5 Core Hits 55 | 3 21 31 Critical Hits . | . . . Critical Kills . | . . . Critical Parts Destroyed . | . . . Melee Attacks . | . . . Impact . | . . . Slashing . | . . . Piercing . | . . . Sneak Attacks . | . . . Combat Hostiles . | . . . Follow-up Attacks . | . . . Damage Inflicted 1756 | 129 859 768 Guns 809 | 107 686 16 Cannons . | . . . Explosions 947 | 22 173 752 Melee . | . . . Ramming . | . . . Kinetic 377 | . 361 16 Thermal 64 | 22 42 . Explosive 883 | . 131 752 Electromagnetic 432 | 107 325 . Impact . | . . . Slashing . | . . . Piercing . | . . . Highest Corruption . | . . . Average Corruption . | . . . Corruption Purged . | . . . Overload Shots . | . . . Overflow Damage 20 | . . 20 Projectiles . | . . . Explosions 20 | . . 20 Melee . | . . . Knockbacks . | . . . Impact . | . . . Kinetic . | . . . Secondary . | . . . Self-Inflicted Damage 46 | 25 8 13 Shots 3 | 1 1 1 Rammed . | . . . Targets Rammed . | . . . Kicked . | . . . Crushed . | . . . Highest Temperature 214 | 120 214 22 Average Temperature 76 | 53 82 10 Received Heat Transfer 263 | . 243 20 Siege Activations . | . . . Robots Corrupted . | . . . Combat Hostiles . | . . . Parts Fried 6 | 1 5 . Impact Corruptions . | . . . Robots Melted . | . . . Combat Hostiles . | . . . Parts Melted . | . . . Heat Transferred 100 | 50 50 . Parts Sabotaged . | . . . Parts Stolen . | . . . Parts Stripped . | . . . Power Chain Reactions 2 | 1 1 . Missiles Intercepted . | . . . Alert | -11 -10 -10 ------- Run | Scr Mat Min Peak Influence 202 | 10 202 81 Initial 6 | . 6 1 Average 57 | 4 68 34 Maximum Alert Level 1 | . 1 . Low Security (%) 94 | 100 93 100 Level 1 5 | . 6 . Level 2 . | . . . Level 3 . | . . . Level 4 . | . . . Level 5 . | . . . High Security . | . . . Max Security . | . . . Squads Dispatched 2 | . 2 . Investigation 1 | . 1 . Extermination . | . . . Reinforcement 1 | . 1 . Assault . | . . . Garrison . | . . . Intercept . | . . . Construction Impeded . | . . . Haulers Reinforced . | . . . Stealth | -11 -10 -10 --------- Run | Scr Mat Min Distress Signals 1 | . 1 . Communications Jammed . | . . . Distress Signals . | . . . Times Spotted 40 | . 19 21 Peak Tracking Total 12 | . 4 12 Tactical Retreats 1 | . 1 . Traps | -11 -10 -10 ------- Run | Scr Mat Min Traps Triggered 2 | . 2 . Indirectly . | . . . Trap Hack Attempts . | . . . Triggered . | . . . Disarmed . | . . . Reprogrammed 6 | . 6 . Reused 4 | . 4 . Traps Extracted . | . . . Installed . | . . . Triggered 4 | . 4 . Machines | -11 -10 -10 ---------- Run | Scr Mat Min Machines Disabled 1 | . 1 . Max in Single Turn 1 | . 1 . Machines Sabotaged . | . . . Garrisons Compromised . | . . . Overloaded Fab Kills . | . . . Fab Network Shutdowns . | . . . Hacking | -11 -10 -10 --------- Run | Scr Mat Min Machines Accessed 7 | . 7 . Terminals 6 | . 6 . Fabricators . | . . . Repair Stations . | . . . Recycling Units 1 | . 1 . Scanalyzers . | . . . Garrison Access . | . . . Total Hacks 24 | . 24 . Successful 13 | . 13 . Failed 11 | . 11 . Catastrophic 1 | . 1 . Database Lockouts . | . . . Manual 16 | . 16 . Terminals 22 | . 22 . Fabricators . | . . . Repair Stations . | . . . Recycling Units 2 | . 2 . Scanalyzers . | . . . Garrison Access . | . . . Terminal Hacks 8 | . 8 . Part Schematic 1 | . 1 . Robot Analysis 2 | . 2 . Prototype ID Bank 1 | . 1 . Unreport Threat 1 | . 1 . Locate Traps 1 | . 1 . Reprogram Traps 1 | . 1 . Zone Layout 1 | . 1 . Fabricator Hacks . | . . . Repair Station Hacks . | . . . Recycling Unit Hacks 1 | . 1 . Retrieve Components 1 | . 1 . Scanalyzer . | . . . Garrison Access Hacks . | . . . Unauthorized Hacks 4 | . 4 . Terminals 3 | . 3 . Track 1 | . 1 . Botnet 2 | . 2 . Fabricators . | . . . Repair Stations . | . . . Recycling Units 1 | . 1 . Tunnel 1 | . 1 . Scanalyzers . | . . . Garrison Access . | . . . Data Cores Recovered . | . . . Used . | . . . Hacking Detections 6 | . 6 . Full Trace Events . | . . . Feedback Events . | . . . Feedback Blocked . | . . . Robot Schematics Acquired . | . . . Robots Built . | . . . Matter . | . . . Time . | . . . Total Robot Build Rating . | . . . Part Schematics Acquired 1 | . 1 . Parts Built . | . . . Matter . | . . . Time . | . . . Total Part Build Rating . | . . . Parts Repaired . | . . . Time . | . . . Parts Recycled . | . . . Recycled Matter . | . . . Retrieved Matter . | . . . Retrieved Components 4 | . 4 . Parts Scanalyzed . | . . . Part Schematics Acquired . | . . . Parts Damaged . | . . . Bothacking | -11 -10 -10 ------------ Run | Scr Mat Min Used RIF Installer . | . . . Robots Hacked . | . . . Non-combat . | . . . Combat . | . . . Robot Hacks Applied . | . . . Relay Couplers Released . | . . . Robots Rewired . | . . . Allies Hacked . | . . . Hacks Repelled . | . . . Allies | -11 -10 -10 -------- Run | Scr Mat Min Total Allies 3 | . . 3 Largest Group 3 | . . 3 Highest-Rated Group 40 | . . 40 Highest-Rated Ally 16 | . . 16 Total Orders . | . . . Ally Attacks 20 | . . 20 Total Damage 223 | . . 223 Kills 6 | . . 6 Allies Corrupted . | . . . Allies Melted . | . . . Intel | -11 -10 -10 ------- Run | Scr Mat Min Robot Analysis Total 2 | . 2 . Derelict Logs Recovered . | . . . Drone Launches . | . . . Drone Recoveries . | . . . Exploration | -11 -10 -10 ------------- Run | Scr Mat Min Turns Passed 1146 | 122 869 155 Spaces Moved 783 | 82 592 109 Core 2 | 2 . . Treads 2 | 2 . . Legs . | . . . Wheels 779 | 78 592 109 Hover . | . . . Flight . | . . . Fastest Speed 50 | 50 100 110 Average Speed 110 | 100 111 113 Slowest Speed 160 | 160 130 130 Overloaded Moves . | . . . Propulsion Burnouts . | . . . Robots Hopped . | . . . Cave-ins Triggered . | . . . Exploration Rate (%) 39 | 5 92 22 Regions Visited 2 Branch Regions 1 Pre-discovered Areas 1 | . 1 . Known Exits Taken . | . . . Unknown Exits Taken 2 | 1 1 . Scrap Searched . | . . . Spaces Dug 23 | . 10 13 Terrain Destroyed 65 | . 24 41 Melee . | . . . Projectile . | . . . AOE 65 | . 24 41 Terrain Rammed . | . . . Walls Destroyed . | . . . Machines Disabled . | . . . Actions | -11 -10 -10 --------- Run | Scr Mat Min Total 925 | 102 695 128 Wait 13 | . 12 1 Move 781 | 81 591 109 Hop . | . . . Pick Up 22 | 6 15 1 Fast Attach 10 | 7 3 . Attach 4 | . 2 2 Detach . | . . . Swap 13 | . 9 4 Drop 7 | . 6 1 Fire 75 | 8 57 10 Melee . | . . . Ram . | . . . Kick . | . . . Crush . | . . . Escape Stasis . | . . . Rewire . | . . . Trap . | . . . Miscellaneous . | . . . Route ------- -11/Scrapyard -10/Materials (discovered 4 exits: [*Mat x3] / [*Min]) -10/Mines History --------- Turn | Location | Event 2 | -11/Scrapyard | Met Revision 17 11 | -11/Scrapyard | Discovered new exit (range 16) 123 | -11/Scrapyard | Entered Materials 241 | -10/Materials | Discovered new exit (range 9) 325 | -10/Materials | Build established: Mutant 746 | -10/Materials | Discovered new exit (range 16) 804 | -10/Materials | Discovered new exit (range 16) 925 | -10/Materials | Discovered new exit (range 8) 992 | -10/Materials | Entered Mines 995 | -10/Mines | Assisted by bots powering up and referring to "LRC-V3" 1088 | -10/Mines | Assembled infested the area 1093 | -10/Mines | Assisted by a Guerilla fighting off Assembled 1114 | -10/Mines | Core integrity fell below 50% 1132 | -10/Mines | Destroyed 11 combat bots 1146 | -10/Mines | Core integrity fell below 20% 1147 | -10/Mines | Destroyed by D-53 Grenadier with Mini Grenade Launcher Last Messages --------------- 01104_ as-10755 destroyed. 01106_ Acquired 23 matter. 01108_ The unstable cave ceiling collapses. 01109_ Destroyed Asb. Hover Unit. 01111_ as-43749 destroyed. 01111_ as-32290 destroyed. 01111_ as-07002 destroyed. 01113_ Destroyed Asb. Hover Unit. 01115_ as-88405 destroyed. 01117_ Extracted 50 matter. 01119_ The unstable cave ceiling collapses. 01119_ Acquired 29 matter. 01123_ Dropped Imp. Ion Engine. 01124_ Acquired Fission Core. 01134_ Acquired 3 matter. 01142_ C-30 ARC bursts open, deploying its payload. 01142_ D-53 Grenadier unfolds itself. 01142_ Trooper 1a destroyed. 01144_ The unstable cave ceiling collapses. 01145_ Trooper 1b destroyed. Map ----- +----------------------------------------------------+ | | | | | | | | | | | | | | | | | ?????????????????????????????????????????????????? | | ?????????????????????????????##########??????????? | | ????????????????????????????## ## #??????????? | | ??????????????############### # #??????????? | | ????????####??# #??????????? | | ???????## ##?# ######### # ########???? | | ????#### ### #???????# ## #???? | | ????# ## ###?##### ### ### #???? | | ??### *%= ###* ## #?## #???????? | | ??# #### [ * *!* ######### ##???????? | | ??# ###??## = # ##???## ##????????? | | ??# #?????# # * #?#######?????????? | | ?## #????# ### # ## ##????????????? | | ?# #???# ##?## ### #????????????? | | ?# #???#####???# # #????????????? | | ?####???????????## # #????????????? | | ?????????????###### ## ##????????????? | | ?????????????# d @ % #?????????????? | | ?????????????# % d %[ # #????????????? | | ?????????????# ###### = #????????????? | | ?????????????????????# #????????????? | | ?????????????????????## # # ###????????????? | | ??????????????????????######### ##??????????????? | | ??????????????????????????????? #???????????????? | | ??????????????????????????????? #???????????????? | | ????????????????????????????????$#???????????????? | | ???????????????????????????????? #???????????????? | | ???????????????????????????????? ???????????????? | | ????????????????????????????????? ???????????????? | | ?????????????????????????????????? ??????????????? | | ?????????????????????????????????????????????????? | | ?????????????????????????????????????????????????? | | ?????????????????????????????????????????????????? | | ?????????????????????????????????????????????????? | | ?????????????????????????????????????????????????? | | ?????????????????????????????????????????????????? | | ?????????????????????????????????????????????????? | | ?????????????????????????????????????????????????? | | ?????????????????????????????????????????????????? | | ?????????????????????????????????????????????????? | | ?????????????????????????????????????????????????? | | ?????????????????????????????????????????????????? | +----------------------------------------------------+ Best States ------------- Heat Dissipation 25 Energy Generation 12 Energy Capacity 265 Matter Stores 300 Matter Capacity 300 Sight Range 16 Terrain Scan Density 10 Evasion (%) 40 Recoil Reduction 1 Item Schematics ----------------- Hcp. Storage Unit | -10/Materials | Hacked Robot Schematics ------------------ None Fabricated ------------ Nothing Alien Tech Used ----------------- None Achievements -------------- None Challenges ------------ None Game ------ Seed GodGravityAirjet Manual? 0 Play Time 00:10:30 Cumulative 528.4 hours Start 2021.02.08 @ 16:17:29 End 2021.02.08 @ 16:27:45 Sessions 1 Manual Loads 0 Difficulty Rogue Special Mode None Game No. 339 Rogue 339 Adventurer 0 Explorer 0 Win Type - Total 6 Types 4/0/1/0/1/0/0/0/0 Lore% 88 Gallery% 88 Achievement% 70 Wizard Run 0 Options --------- ASCII 0 Keyboard 0 Movement Mouse Keybinds 1 Fullscreen 2 Font 24/Smallcaps Map View 68x50 Tactical HUD 1 Map Filters NONE Filters NONE Steam 1 RUN: 6abd1ce0-a197-4275-aa68-e5ab2b934cc7